bitfinex/quotes_SOLUSD_20250617
["timestamp","ask_amount","ask_price","bid_price","bid_amount"]
[1750168881332,6.5513397,149.91,149.87,13.22365554]
[1750168881728,6.5513397,149.91,149.87,6.67231584]
[1750168881930,57.97659579,149.92,149.88,6.5513397]
[1750168882129,53.00098856,149.92,149.88,6.5513397]
[1750168882343,53.00098856,149.92,149.88,13.22330356]
[1750168882546,25.20098856,149.92,149.88,6.67196386]
[1750168884147,18.64964886,149.92,149.88,13.22330356]
[1750168884444,25.57351264,149.93,149.89,6.5513397]
[1750168884821,25.57351264,149.93,149.91,6.5513397]
[1750168885016,25.57351264,149.93,149.89,6.5513397]
[1750168885751,32.12485234,149.93,149.89,6.5513397]
[1750168886051,6.18,149.93,149.89,6.5513397]
[1750168886247,6.18,149.93,149.91,6.5513397]
[1750168886560,6.18,149.93,149.91,13.22173049]
[1750168886723,6.18,149.93,149.9,6.5513397]
[1750168886929,18.64964886,149.9,149.84,6.67378537]
[1750168887153,6.5513397,149.87,149.84,6.67378537]
[1750168887340,6.5513397,149.88,149.84,6.67378537]
[1750168887923,6.5513397,149.86,149.83,8.30795721]
[1750168889037,6.5513397,149.85,149.83,6.67405721]
[1750168889395,6.5513397,149.84,149.83,6.67405721]
[1750168889536,6.5513397,149.85,149.83,6.67405721]
[1750168890239,6.5513397,149.85,149.81,6.67512182]
[1750168890436,6.5513397,149.85,149.81,13.22646152]
[1750168891161,6.5513397,149.84,149.81,6.67512182]
[1750168891537,6.5513397,149.85,149.81,13.22646152]
[1750168894565,6.5513397,149.85,149.81,6.67512182]
[1750168895166,57.98261258,149.88,149.83,6.5513397]
[1750168895472,11.53296372,149.87,149.83,6.5513397]
[1750168895967,11.53296372,149.87,149.82,6.5513397]
[1750168896462,6.5513397,149.86,149.83,6.67423079]
[1750168896640,6.5513397,149.85,149.83,6.67423079]
[1750168897771,6.5513397,149.86,149.83,6.67423079]
[1750168898276,6.5513397,149.86,149.82,6.67467627]
[1750168899675,6.5513397,149.85,149.82,6.67467627]
[1750168900646,6.5513397,149.83,149.76,1.5781]
[1750168900850,6.5513397,149.77,149.7,16.70003882]
[1750168901049,6.5513397,149.77,149.68,7.9175]
[1750168901050,6.5513397,149.72,149.69,6.68047297]
[1750168901271,6.5513397,149.71,149.65,6.6822586]
[1750168901473,6.5513397,149.71,149.66,6.5513397]
[1750168901669,6.5513397,149.71,149.67,6.5513397]
[1750168901879,6.5513397,149.72,149.67,6.5513397]
[1750168902084,6.5513397,149.71,149.67,6.5513397]
[1750168902283,27.78,149.73,149.68,6.68091929]
[1750168902578,6.5513397,149.72,149.68,6.68091929]
[1750168902884,11.25185364,149.72,149.68,6.68091929]
[1750168903873,4.96265212,149.72,149.68,6.68091929]
[1750168904191,39.03185364,149.73,149.69,11.25185364]
[1750168904484,39.03185364,149.73,149.7,6.68002672]
[1750168904872,27.78,149.73,149.7,6.68002672]
[1750168905066,39.03185364,149.73,149.7,6.68002672]
[1750168906182,27.78,149.73,149.7,17.93188036]
[1750168906382,6.16,149.75,149.72,11.25185364]
[1750168906580,6.16,149.75,149.74,11.25185364]
[1750168907172,6.16,149.75,149.71,12.77965364]
[1750168907390,6.16,149.75,149.73,11.25185364]
[1750168907694,6.16,149.75,149.74,11.25185364]
[1750168908282,6.16,149.75,149.73,17.93021956]
[1750168908606,6.16,149.75,149.71,1.5278]
[1750168908763,11.25185364,149.72,149.67,27.6125]
[1750168909090,11.25185364,149.72,149.68,11.25185364]
[1750168909286,11.25185364,149.71,149.67,1.6125]
[1750168909462,11.25185364,149.68,149.63,6.68315177]
[1750168909666,11.25185364,149.68,149.64,11.25185364]
[1750168910189,11.25185364,149.66,149.62,19.55308441]
[1750168910483,11.25185364,149.67,149.62,19.55308441]
[1750168910662,11.25185364,149.67,149.63,11.25185364]
[1750168910982,11.25185364,149.68,149.63,11.25185364]
[1750168911584,27.8,149.7,149.64,11.25185364]
[1750168911790,27.8,149.7,149.66,11.25185364]
[1750168911975,39.05185364,149.7,149.66,11.25185364]
[1750168912169,11.25185364,149.67,149.62,25.01022689]
[1750168912375,11.25185364,149.66,149.62,8.30123077]
[1750168912602,11.25185364,149.66,149.62,19.55308441]
[1750168912890,11.25185364,149.7,149.65,11.25185364]
[1750168913263,11.25185364,149.69,149.65,11.25185364]
[1750168913783,11.25185364,149.7,149.65,11.25185364]
[1750168913990,11.25185364,149.7,149.66,6.6818121]
[1750168914395,11.25185364,149.69,149.66,6.6818121]
[1750168915589,11.25185364,149.7,149.66,17.93366574]
[1750168915794,11.25185364,149.7,149.66,6.6818121]
[1750168916012,46.44964886,149.71,149.66,6.6818121]
[1750168916013,11.25185364,149.69,149.66,6.6818121]
[1750168916236,11.25185364,149.68,149.65,6.68211067]
[1750168916507,0.28432314,149.73,149.65,6.68211067]
[1750168916508,18.64964886,149.73,149.67,11.25185364]
[1750168916678,11.25185364,149.72,149.67,11.25185364]
[1750168916880,78.60964886,149.73,149.67,11.25185364]
[1750168917188,11.25185364,149.72,149.68,11.25185364]
[1750168917897,11.25185364,149.71,149.67,11.25185364]
[1750168918492,78.60964886,149.73,149.68,6.68091929]
[1750168918893,78.60964886,149.73,149.68,17.93277293]
[1750168919290,57.48837056,149.73,149.68,6.68091929]
[1750168919495,85.28837056,149.73,149.68,6.68091929]
[1750168920290,57.48837056,149.73,149.68,6.68091929]
[1750168920490,85.28837056,149.73,149.68,6.68091929]
[1750168921120,78.60964886,149.73,149.68,6.68091929]
[1750168921415,85.28840505,149.73,149.68,6.68091929]
[1750168921934,11.25185364,149.69,149.64,6.68270515]
[1750168922217,11.25185364,149.69,149.61,17.93589882]
[1750168922218,11.25185364,149.65,149.61,17.93589882]
[1750168922382,11.25185364,149.66,149.61,17.93589882]
[1750168922587,11.25185364,149.66,149.62,11.25185364]
[1750168922812,27.8,149.67,149.64,11.25185364]
[1750168923407,39.05185364,149.67,149.63,11.25185364]
[1750168923632,39.05185364,149.67,149.61,23.39415814]
[1750168923806,11.25185364,149.65,149.61,17.93589882]
[1750168924530,39.05185364,149.67,149.63,6.68315177]
[1750168925605,27.8,149.67,149.63,6.68315177]
[1750168925799,39.05185364,149.67,149.63,6.68315177]
[1750168925998,39.05185364,149.67,149.63,11.25185364]
[1750168926966,1.576,149.75,149.66,11.25185364]
[1750168927143,11.25185364,149.72,149.68,11.25185364]
[1750168927326,11.25185364,149.71,149.67,11.25185364]
[1750168927631,4.91821183,149.72,149.67,10.79419155]
[1750168927797,16.17006547,149.72,149.68,11.25185364]
[1750168928127,11.25185364,149.7,149.65,19.48108576]
[1750168928314,11.25185364,149.69,149.65,8.22923212]
[1750168928636,11.25185364,149.68,149.64,17.93442621]
[1750168928936,11.25185364,149.68,149.63,11.25185364]
[1750168929103,11.25185364,149.66,149.62,6.68359844]
[1750168929305,11.25185364,149.66,149.62,17.93545208]
[1750168931314,11.25185364,149.67,149.62,6.68359844]
[1750168931706,11.25185364,149.66,149.62,6.68359844]
[1750168931904,11.25185364,149.66,149.62,17.93545208]
[1750168932636,11.6105113,149.68,149.62,17.93545208]
[1750168932826,11.25185364,149.66,149.62,6.68359844]
[1750168933015,11.25185364,149.66,149.62,17.93545208]
[1750168933424,11.25185364,149.67,149.63,11.25185364]
[1750168933624,4.92922288,149.68,149.64,11.25185364]
[1750168933820,4.92922288,149.69,149.66,11.25185364]
[1750168934022,21.11034674,149.71,149.66,11.25185364]
[1750168934226,4.92922288,149.7,149.66,11.25185364]
[1750168934472,4.92922288,149.69,149.66,11.25185364]
[1750168934736,4.92922288,149.68,149.67,11.25185364]
[1750168934936,4.92922288,149.7,149.67,11.25185364]
[1750168935247,4.92922288,149.69,149.67,11.25185364]
[1750168935536,4.92922288,149.7,149.67,11.25185364]
[1750168935726,4.92922288,149.69,149.67,6.68108215]
[1750168935927,4.92922288,149.7,149.67,17.93293579]
[1750168936114,4.92922288,149.7,149.69,11.25185364]
[1750168936317,17.39185364,149.73,149.69,11.25185364]
[1750168936318,4.92922288,149.72,149.69,11.25185364]
[1750168936618,4.92922288,149.72,149.71,11.25185364]
[1750168936816,4.92922288,149.74,149.71,11.25185364]
[1750168937114,4.92922288,149.76,149.73,11.25185364]
[1750168937332,4.92922288,149.76,149.74,11.25185364]
[1750168937524,11.25185364,149.77,149.73,11.25185364]
[1750168937726,4.94084341,149.76,149.74,11.25185364]
[1750168937942,17.39185364,149.78,149.74,11.25185364]
[1750168938235,16.19260929,149.77,149.73,11.25185364]
[1750168938432,4.94075565,149.76,149.73,11.25185364]
[1750168938631,4.94075565,149.77,149.74,11.25185364]
[1750168938822,4.94118435,149.76,149.74,11.25185364]
[1750168939040,11.08075565,149.78,149.74,11.25185364]
[1750168939336,9.88057434,149.77,149.74,11.25185364]
[1750168939543,4.93981869,149.76,149.73,11.25185364]
[1750168939738,4.94458774,149.75,149.74,17.92972473]
[1750168940315,4.94075565,149.77,149.74,17.92972473]
[1750168940533,9.88513379,149.76,149.74,17.92972473]
[1750168940716,4.94075565,149.77,149.74,17.92972473]
[1750168940917,17.39185364,149.78,149.74,17.92972473]
[1750168941119,9.88783126,149.77,149.73,6.67860525]
[1750168941337,9.88783126,149.77,149.73,17.93045889]
[1750168941338,9.88687478,149.76,149.73,17.93045889]
[1750168941648,4.95095539,149.76,149.75,6.67779632]
[1750168942254,9.90314135,149.76,149.74,17.92992238]
[1750168942551,4.95916603,149.77,149.75,11.25185364]
[1750168942736,4.95919646,149.81,149.76,11.25185364]
[1750168942927,9.9183188,149.8,149.75,1.5503]
[1750168943136,9.9183188,149.8,149.74,23.37367445]
[1750168943137,9.9183188,149.79,149.76,11.25185364]
[1750168943316,4.9591594,149.78,149.77,11.25185364]
[1750168943738,4.9591594,149.78,149.77,17.92875822]
[1750168944344,9.91791763,149.78,149.77,17.92875822]
[1750168945046,9.91791763,149.78,149.77,6.67690458]
[1750168945448,9.92870672,149.78,149.77,17.92875822]
[1750168946047,9.92870672,149.78,149.76,11.25185364]
[1750168946234,9.92870672,149.77,149.76,11.25185364]
[1750168946851,9.9388893,149.77,149.74,6.67824228]
[1750168947060,9.9388893,149.76,149.74,17.93009592]
[1750168947239,11.25185364,149.79,149.74,17.93009592]
[1750168947422,21.1894839,149.78,149.74,17.93009592]
[1750168947626,9.93763026,149.77,149.74,17.93009592]
[1750168947828,34.86319958,149.81,149.76,11.25185364]
[1750168948056,21.18471759,149.8,149.73,0.14216157]
[1750168948226,21.18471759,149.79,149.74,11.25185364]
[1750168948428,9.93286395,149.78,149.75,11.25185364]
[1750168948641,4.96626348,149.77,149.76,11.25185364]
[1750168949059,4.96626348,149.77,149.76,11.39401521]
[1750168949241,4.96624252,149.79,149.72,23.37697034]
[1750168949484,9.92930584,149.78,149.74,11.25185364]
[1750168949639,9.92997303,149.77,149.73,11.25185364]
[1750168949830,4.96528306,149.76,149.72,17.93098802]
[1750168950032,11.63808745,149.79,149.72,17.93098802]
[1750168950233,11.25185364,149.77,149.72,17.93098802]
[1750168950546,4.96527612,149.76,149.72,17.93098802]
[1750168950856,11.25185364,149.77,149.73,6.6782712]
[1750168951169,16.21682397,149.76,149.72,6.67895917]
[1750168951467,11.25185364,149.76,149.72,6.67895917]
[1750168951776,6.67652754,149.78,149.72,6.67895917]
[1750168951777,21.1818153,149.75,149.72,6.67895917]
[1750168951977,11.25185364,149.75,149.72,6.67895917]
[1750168952145,16.21683447,149.76,149.72,6.67895917]
[1750168952463,4.96452995,149.75,149.72,17.93081281]
[1750168952673,11.25185364,149.76,149.72,17.93081281]
[1750168952838,4.96460147,149.75,149.72,17.93081281]
[1750168953039,11.25185364,149.76,149.72,17.93081281]
[1750168953261,4.96460147,149.75,149.72,6.67895917]
[1750168953653,11.25185364,149.76,149.72,6.67895917]
[1750168953971,16.21703726,149.75,149.71,19.44284537]
[1750168954166,11.25185364,149.75,149.71,19.44284537]
[1750168954375,16.21529692,149.75,149.71,19.44284537]
[1750168954956,4.96344328,149.75,149.71,19.44284537]
[1750168955787,16.21529692,149.76,149.71,19.44284537]
[1750168955958,22.89274784,149.76,149.71,19.44284537]
[1750168956158,17.92930456,149.76,149.71,19.44284537]
[1750168956361,11.25185364,149.73,149.7,6.67987586]
[1750168956681,11.25185364,149.73,149.68,6.68091929]
[1750168956877,16.21602974,149.73,149.68,17.93277293]
[1750168957092,11.25185364,149.73,149.68,17.93277293]
[1750168957395,11.25185364,149.72,149.68,17.93277293]
[1750168957559,16.21602974,149.72,149.68,6.68091929]
[1750168957763,11.25185364,149.72,149.68,17.93277293]
[1750168958356,16.21602974,149.72,149.68,17.93277293]
[1750168958691,4.9641761,149.72,149.68,17.93277293]
[1750168958978,21.17847924,149.73,149.68,17.93277293]
[1750168959189,11.25185364,149.74,149.7,11.25185364]
[1750168959353,4.9641761,149.74,149.7,11.25185364]
[1750168959552,21.18159877,149.74,149.69,11.25185364]
[1750168959789,11.25185364,149.73,149.69,11.25185364]
[1750168960100,11.25185364,149.72,149.68,17.93277293]
[1750168960588,4.9641761,149.73,149.68,17.93277293]
[1750168960808,16.21602974,149.72,149.68,6.68091929]
[1750168961007,11.25185364,149.72,149.68,6.68091929]
[1750168961181,21.18180598,149.72,149.68,6.68091929]
[1750168961571,21.18180598,149.72,149.68,17.93277293]
[1750168961791,21.18180598,149.73,149.68,17.93277293]
[1750168962006,16.21602974,149.72,149.68,17.93277293]
[1750168962194,21.18180598,149.72,149.68,17.93277293]
[1750168962975,16.21602974,149.71,149.67,8.25596681]
[1750168963207,4.9641761,149.71,149.67,17.93302045]
[1750168963396,16.21602974,149.72,149.67,17.93302045]
[1750168963596,21.1820965,149.72,149.67,17.93302045]
[1750168963901,21.18209585,149.72,149.67,17.93302045]
[1750168964072,21.18209585,149.72,149.68,11.25185364]
[1750168964273,21.18209585,149.72,149.68,17.93257159]
[1750168964482,21.18209585,149.72,149.68,6.68071795]
[1750168964883,16.21602974,149.72,149.68,6.68071795]
[1750168965084,9.93004874,149.73,149.69,11.25185364]
[1750168965291,9.93004874,149.73,149.7,11.25185364]
[1750168965576,26.0,149.74,149.71,11.25185364]
[1750168965894,11.25185364,149.75,149.68,23.38301618]
[1750168965895,4.96702788,149.73,149.7,11.25185364]
[1750168966078,9.9340572,149.74,149.7,11.25185364]
[1750168966279,4.96702788,149.74,149.7,17.93149854]
[1750168966497,4.9669935,149.73,149.7,17.93149854]
[1750168966693,9.933987,149.74,149.7,17.93149854]
[1750168966880,16.21884714,149.74,149.7,17.93149854]
[1750168967382,11.25185364,149.72,149.66,16.70444803]
[1750168967697,16.21884714,149.72,149.67,11.25185364]
[1750168967883,11.25185364,149.71,149.65,6.6822586]
[1750168968080,11.25185364,149.7,149.66,11.25185364]
[1750168968280,16.22108305,149.7,149.66,17.93342201]
[1750168968899,22.90128105,149.7,149.64,6.68270515]
[1750168969071,11.25185364,149.68,149.64,17.93455879]
[1750168969275,16.22268083,149.68,149.64,17.93455879]
[1750168969576,16.22268083,149.68,149.64,6.68270515]
[1750168969888,4.97082719,149.68,149.66,11.25185364]
[1750168970188,11.25185364,149.7,149.67,11.25185364]
[1750168970189,4.97119147,149.7,149.67,11.25185364]
[1750168970497,4.97119147,149.7,149.67,17.93280153]
[1750168970999,4.96919574,149.71,149.67,17.93280153]
[1750168971306,11.25185364,149.69,149.64,11.25185364]
[1750168971611,4.97382967,149.68,149.64,11.25185364]
[1750168971804,11.25185364,149.69,149.65,11.25185364]
[1750168972106,16.22592872,149.69,149.65,11.25185364]
[1750168972485,16.2260257,149.69,149.65,17.93376887]
[1750168972683,11.25185364,149.69,149.65,17.93376887]
[1750168972883,4.97371405,149.68,149.65,17.93376887]
[1750168973591,16.2260257,149.69,149.65,17.93376887]
[1750168973791,16.2260257,149.7,149.65,17.93376887]
[1750168974003,9.94809704,149.69,149.65,17.93376887]
[1750168974203,4.97417206,149.69,149.65,17.93376887]
[1750168974693,4.97594218,149.68,149.66,11.25185364]
[1750168975005,11.25185364,149.69,149.65,17.93376887]
[1750168975182,4.97554245,149.68,149.65,17.93376887]
[1750168975383,11.25185364,149.69,149.65,17.93376887]
[1750168975610,4.97554245,149.68,149.65,17.93376887]
[1750168975780,11.25185364,149.69,149.64,6.68255553]
[1750168975981,6.68014474,149.7,149.64,17.93440917]
[1750168975982,21.20233541,149.68,149.64,17.93440917]
[1750168976208,4.97525615,149.67,149.64,17.93440917]
[1750168976422,4.9753185,149.68,149.64,17.93440917]
[1750168976605,9.95695163,149.67,149.64,17.93440917]
[1750168976783,17.93238373,149.69,149.64,17.93440917]
[1750168977106,9.95668264,149.68,149.64,17.93440917]
[1750168977285,9.95668264,149.67,149.64,17.93440917]
[1750168977610,4.97832833,149.66,149.65,11.25185364]
[1750168977806,27.76,149.72,149.65,11.25185364]
[1750168977807,9.95363908,149.7,149.65,11.25185364]
[1750168977980,4.97681704,149.69,149.68,11.25185364]
[1750168978186,9.95359507,149.71,149.68,11.25185364]
[1750168978390,4.97677803,149.74,149.7,11.25185364]
[1750168978601,9.95321473,149.73,149.7,17.93150541]
[1750168978903,9.95321473,149.72,149.71,11.25185364]
[1750168979112,4.9764367,149.72,149.71,11.25185364]
[1750168979312,4.9764367,149.73,149.71,11.25185364]
[1750168979483,4.9754484,149.75,149.72,11.25185364]
[1750168979687,4.97547607,149.74,149.72,11.25185364]
[1750168979888,4.97524111,149.75,149.72,11.25185364]
[1750168980098,4.97689097,149.75,149.72,11.25185364]
[1750168980301,4.97689097,149.75,149.74,11.25185364]
[1750168980611,9.9539327,149.75,149.7,8.26755177]
[1750168980806,9.9539327,149.74,149.71,11.25185364]
[1750168981113,9.9539327,149.74,149.66,26.0]
[1750168981114,11.25185364,149.72,149.66,12.86745364]
[1750168981322,9.95447133,149.71,149.67,17.93307568]
[1750168981488,11.25185364,149.72,149.68,11.25185364]
[1750168981687,27.76,149.73,149.71,11.25185364]
[1750168981889,9.95666518,149.72,149.71,11.25185364]
[1750168982104,26.0,149.75,149.71,11.25185364]
[1750168982105,4.97752674,149.74,149.71,11.25185364]
[1750168982399,9.95485408,149.73,149.7,11.25185364]
[1750168982709,4.97574166,149.72,149.7,17.93158892]
[1750168982905,4.97586053,149.74,149.7,17.93158892]
[1750168983201,9.95209846,149.73,149.7,17.93158892]
[1750168983414,11.25185364,149.74,149.7,17.93158892]
[1750168983716,9.95162319,149.73,149.7,17.93158892]
[1750168983885,37.25185364,149.75,149.7,17.93158892]
[1750168984082,9.95069792,149.74,149.7,17.93158892]
[1750168984314,9.95069792,149.73,149.7,17.93158892]
[1750168984526,4.97534896,149.72,149.7,17.93158892]
[1750168984710,4.97651489,149.74,149.7,17.93158892]
[1750168984912,9.95301626,149.73,149.7,17.93158892]
[1750168985090,4.97650137,149.72,149.7,17.93158892]
[1750168985291,4.97649646,149.74,149.7,17.93158892]
[1750168985620,9.95454279,149.73,149.7,17.93158892]
[1750168985820,4.97804633,149.72,149.7,17.93158892]
[1750168986022,4.97755104,149.74,149.7,17.93158892]
[1750168986193,9.95470907,149.73,149.7,17.93158892]
[1750168986398,4.97715803,149.72,149.7,17.93158892]
[1750168986613,4.97784917,149.74,149.7,17.93158892]
[1750168986793,9.95578171,149.73,149.7,17.93158892]
[1750168986996,9.95503106,149.72,149.69,6.68033732]
[1750168987303,26.0,149.75,149.71,11.25185364]
[1750168987504,9.95563106,149.74,149.72,11.25185364]
[1750168987714,4.9779045,149.73,149.71,11.25185364]
[1750168987905,4.97796509,149.75,149.71,11.25185364]
[1750168988101,9.95567959,149.74,149.7,11.25185364]
[1750168988393,9.95567959,149.73,149.71,11.25185364]
[1750168988588,4.97786882,149.72,149.71,11.25185364]
[1750168988810,4.97786882,149.72,149.71,13.24001458]
[1750168989514,4.97786882,149.72,149.71,6.67958052]
[1750168989709,4.97786882,149.72,149.71,13.24001458]
[1750168990094,4.97786882,149.72,149.71,6.67958052]
[1750168990293,9.95866108,149.72,149.71,6.67958052]
[1750168990509,9.95866108,149.72,149.71,13.24001458]
[1750168990710,9.95866108,149.72,149.71,6.67958052]
[1750168991824,9.96364633,149.72,149.71,13.24001458]
[1750168991994,4.98184728,149.72,149.71,13.24001458]
[1750168992203,9.96469847,149.72,149.71,13.24001458]
[1750168992820,9.96469847,149.72,149.71,6.56043406]
[1750168993225,9.96787375,149.72,149.71,6.56043406]
[1750168993516,4.98184728,149.72,149.71,6.56043406]
[1750168993924,9.96783708,149.72,149.71,13.24001458]
[1750168994126,9.96783708,149.72,149.68,13.24135335]
[1750168994299,9.96783708,149.71,149.68,13.24135335]
[1750168994624,11.54035526,149.75,149.7,6.56043406]
[1750168994826,9.9723313,149.74,149.7,6.56043406]
[1750168995127,9.9723313,149.73,149.68,6.68091929]
[1750168995298,6.56043406,149.7,149.66,1.6156]
[1750168995499,9.97117262,149.69,149.66,8.17603406]
[1750168995715,4.98616565,149.68,149.66,8.17603406]
[1750168995898,6.56043406,149.7,149.66,14.85764664]
[1750168996104,9.97423574,149.69,149.66,14.85764664]
[1750168996302,9.97423574,149.68,149.66,14.85764664]
[1750168996500,4.9799212,149.71,149.67,6.56043406]
[1750168996711,9.97498015,149.7,149.67,6.56043406]
[1750168996911,9.97498015,149.7,149.66,8.29721258]
[1750168996912,9.97498015,149.69,149.66,8.29721258]
[1750168997106,4.98753171,149.68,149.67,6.56043406]
[1750168997307,4.98744218,149.68,149.67,6.56043406]
[1750168997510,6.56043406,149.71,149.67,6.56043406]
[1750168997718,9.975195,149.7,149.67,6.56043406]
[1750168997918,9.975195,149.69,149.68,6.68091929]
[1750168998397,9.975195,149.69,149.68,13.24135335]
[1750168998718,32.7199212,149.73,149.68,13.24135335]
[1750168998920,9.97830428,149.72,149.69,6.56043406]
[1750168999105,9.97830428,149.71,149.69,6.56043406]
[1750168999306,4.98915214,149.7,149.69,6.56043406]
[1750168999525,4.98885986,149.7,149.69,6.56043406]
[1750168999828,4.98885986,149.7,149.69,13.24090703]
[1750169000030,11.55216665,149.74,149.69,13.24090703]
[1750169000233,9.97895762,149.73,149.69,13.24090703]
[1750169000412,9.97895762,149.72,149.69,13.24090703]
[1750169000617,9.97895762,149.71,149.69,13.24090703]
[1750169000829,4.98947881,149.7,149.69,13.24090703]
[1750169001210,16.54159051,149.7,149.67,6.68136567]
[1750169001412,9.98115645,149.69,149.67,6.68136567]
[1750169001721,9.98106483,149.68,149.67,6.68136567]
[1750169001911,9.98106483,149.68,149.67,13.24179973]
[1750169002107,4.98947881,149.68,149.67,13.24179973]
[1750169003711,9.98090863,149.68,149.67,13.24179973]
[1750169004216,9.98090863,149.68,149.67,6.68136567]
[1750169004609,9.98090863,149.68,149.66,13.24207687]
[1750169004808,9.98116778,149.67,149.64,13.38530078]
[1750169005020,6.56043406,149.68,149.64,6.68270515]
[1750169005227,9.9829239,149.67,149.64,13.24313921]
[1750169005431,9.9829239,149.66,149.64,13.24313921]
[1750169005636,4.99146195,149.65,149.64,13.24313921]
[1750169006112,4.99015457,149.65,149.64,13.24313921]
[1750169006313,4.99015457,149.65,149.64,6.68270515]
[1750169006514,6.56043406,149.68,149.64,6.68270515]
[1750169006829,4.99062473,149.67,149.64,6.68270515]
[1750169007038,4.99062473,149.66,149.64,13.24313921]
[1750169007234,11.55216665,149.68,149.64,13.24313921]
[1750169007414,4.98961497,149.67,149.64,13.24313921]
[1750169007741,4.98961497,149.66,149.64,13.24313921]
[1750169008035,11.55216665,149.68,149.64,13.24313921]
[1750169008212,4.98980244,149.67,149.64,13.24313921]
[1750169008411,4.98980244,149.66,149.64,6.68270515]
[1750169008613,6.56043406,149.68,149.64,6.68270515]
[1750169008812,6.56043406,149.68,149.64,13.24313921]
[1750169009011,4.98976099,149.67,149.64,6.68270515]
[1750169009219,6.56043406,149.65,149.6,6.68449197]
[1750169009421,4.98976099,149.64,149.61,6.56043406]
[1750169009633,11.55216665,149.66,149.61,13.24418846]
[1750169009831,11.54683609,149.65,149.61,6.6837544]
[1750169010034,4.98640203,149.64,149.59,6.68493883]
[1750169010239,11.54683609,149.63,149.58,8.30787047]
[1750169010414,11.54644117,149.62,149.58,14.86830453]
[1750169010612,6.56043406,149.62,149.58,14.86830453]
[1750169010843,6.56043406,149.63,149.58,14.86830453]
[1750169011139,4.98602092,149.62,149.58,8.30787047]
[1750169011322,6.56043406,149.63,149.58,14.86830453]
[1750169011323,13.24386265,149.63,149.58,14.86830453]
[1750169011514,4.98604959,149.62,149.58,14.86830453]
[1750169011714,6.56043406,149.62,149.58,14.86830453]
[1750169012133,6.56043406,149.62,149.55,26.0]
[1750169012316,11.54676183,149.61,149.56,6.56043406]
[1750169012516,11.54698852,149.6,149.56,6.56043406]
[1750169012717,6.56043406,149.6,149.56,6.56043406]
[1750169012919,6.68342859,149.63,149.56,6.56043406]
[1750169013118,4.98498854,149.62,149.57,6.56043406]
[1750169013326,6.56043406,149.62,149.57,6.56043406]
[1750169013533,11.5454226,149.62,149.57,6.56043406]
[1750169013731,6.56043406,149.61,149.57,6.56043406]
[1750169014039,4.98498854,149.62,149.56,6.68627975]
[1750169014239,6.56043406,149.6,149.55,6.68658062]
[1750169014532,6.56043406,149.6,149.56,6.56043406]
[1750169014739,6.56043406,149.6,149.55,13.24701468]
[1750169014921,6.56043406,149.58,149.5,18.29602678]
[1750169015254,6.56043406,149.58,149.54,6.56043406]
[1750169015456,6.56043406,149.58,149.54,13.24752761]
[1750169016246,13.2454505,149.59,149.54,13.24752761]
[1750169016445,6.56043406,149.59,149.54,13.24752761]
[1750169016747,34.42466702,149.6,149.54,13.24752761]
[1750169016937,6.56043406,149.59,149.55,6.56043406]
[1750169017435,6.56043406,149.59,149.55,13.24714406]
[1750169017642,13.2454371,149.59,149.54,6.56043406]
[1750169017814,27.74,149.6,149.55,6.56043406]
[1750169018145,26.0,149.61,149.57,6.56043406]
[1750169018934,26.0,149.61,149.53,26.14216157]
[1750169018935,13.2444986,149.61,149.56,6.56043406]
[1750169019136,6.56043406,149.6,149.56,6.56043406]
[1750169019933,6.56043406,149.61,149.57,6.68583272]
[1750169020133,6.56043406,149.61,149.56,6.68608978]
[1750169020457,6.56043406,149.61,149.56,13.24652384]
[1750169020930,6.56043406,149.61,149.57,6.56043406]
[1750169021132,6.56043406,149.61,149.52,6.56043406]
[1750169021133,6.56043406,149.58,149.5,1.5746]
[1750169021338,6.56043406,149.58,149.53,6.56043406]
[1750169021652,6.56043406,149.59,149.54,6.56043406]
[1750169021953,6.56043406,149.59,149.55,13.24678042]
[1750169022147,6.56043406,149.57,149.52,6.83023005]
[1750169022318,6.56043406,149.57,149.53,6.56043406]
[1750169022520,6.56043406,149.57,149.52,6.68806848]
[1750169022917,6.56043406,149.57,149.53,6.56043406]
[1750169023145,6.68495888,149.59,149.53,13.24778431]
[1750169023352,6.56043406,149.58,149.54,6.56043406]
[1750169024164,6.56043406,149.58,149.53,13.24778431]
[1750169024325,13.24582213,149.58,149.53,6.56043406]
[1750169025535,6.56043406,149.58,149.54,13.24751198]
[1750169025865,6.56043406,149.58,149.53,6.56043406]
[1750169025866,13.24590811,149.58,149.53,6.56043406]
[1750169026456,13.24590811,149.58,149.54,6.56043406]
[1750169026826,6.68506874,149.59,149.54,6.56043406]
[1750169027065,13.2455028,149.59,149.51,23.40980535]
[1750169027236,6.56043406,149.58,149.54,6.56043406]
[1750169028046,6.56043406,149.58,149.54,13.24760762]
[1750169028359,4.95197362,149.6,149.55,6.56043406]
[1750169028564,26.0,149.59,149.56,6.56043406]
[1750169029062,6.56043406,149.58,149.54,13.24760762]
[1750169029244,6.56043406,149.57,149.53,6.68741578]
[1750169029446,6.56043406,149.57,149.53,13.24784984]
[1750169030251,6.56043406,149.57,149.51,6.83067738]
[1750169030458,26.0,149.59,149.54,6.56043406]
[1750169030765,6.56043406,149.63,149.58,6.56043406]